bitfinex/quotes_BTCUSD_20241022
["timestamp","ask_amount","ask_price","bid_price","bid_amount"]
[1729561804033,0.35596453,67535.0,67534.0,0.32066536]
[1729561804244,0.35596453,67535.0,67534.0,0.31966536]
[1729561804476,0.23977637,67535.0,67534.0,0.31966536]
[1729561804946,0.23977637,67535.0,67534.0,0.32466536]
[1729561805590,0.23977637,67535.0,67534.0,0.31966536]
[1729561805804,0.23977637,67535.0,67534.0,0.17159236]
[1729561806023,0.173178,67535.0,67534.0,0.17159236]
[1729561806250,0.28936616,67535.0,67534.0,0.31966536]
[1729561806474,0.35596453,67535.0,67534.0,0.32866536]
[1729561806688,0.28936616,67535.0,67534.0,0.32866536]
[1729561807326,0.35596453,67535.0,67534.0,0.32866536]
[1729561808406,0.35596453,67535.0,67534.0,0.18059236]
[1729561808663,0.35596453,67535.0,67534.0,0.32866536]
[1729561809125,0.5744178,67535.0,67534.0,0.02663366]
[1729561809354,0.71236886,67535.0,67534.0,0.02663366]
[1729561809597,0.71236886,67535.0,67534.0,0.019]
[1729561809598,0.60137157,67535.0,67534.0,0.019]
[1729561809832,0.60137157,67535.0,67534.0,0.01]
[1729561809833,0.60637157,67535.0,67534.0,0.01]
[1729561810043,0.60637157,67535.0,67526.0,0.22312298]
[1729561810044,0.321288,67527.0,67526.0,0.22312298]
[1729561810268,0.60141057,67527.0,67526.0,0.23075288]
[1729561810487,0.60141057,67527.0,67526.0,0.0076299]
[1729561810712,0.148093,67525.0,67520.0,0.00499955]
[1729561810943,0.23939697,67523.0,67521.0,0.14895915]
[1729561811199,0.27708513,67522.0,67521.0,0.15658905]
[1729561811438,0.43358716,67522.0,67521.0,0.15658905]
[1729561811647,0.32987295,67522.0,67521.0,0.15658905]
[1729561811866,0.54977532,67522.0,67521.0,0.15658905]
[1729561812087,0.80242141,67522.0,67521.0,0.0076299]
[1729561812319,0.148102,67521.0,67520.0,0.007]
[1729561812540,0.148102,67521.0,67517.0,0.00165]
[1729561812541,0.148108,67518.0,67517.0,0.00165]
[1729561812791,0.452781,67518.0,67517.0,0.00165]
[1729561813250,0.33659284,67518.0,67517.0,0.30639926]
[1729561813465,0.1728,67518.0,67517.0,0.29871915]
[1729561813729,0.1728,67518.0,67517.0,0.15828926]
[1729561813913,0.1728,67518.0,67517.0,0.16428926]
[1729561814168,0.1728,67518.0,67517.0,0.30639926]
[1729561814380,0.21713688,67518.0,67517.0,0.30639926]
[1729561814601,0.33332504,67518.0,67517.0,0.15828926]
[1729561815047,0.33332504,67518.0,67517.0,0.16328926]
[1729561815257,0.28898816,67518.0,67517.0,0.16328926]
[1729561815467,0.28898816,67518.0,67517.0,0.31139926]
[1729561815677,0.28998816,67518.0,67517.0,0.31339926]
[1729561815886,0.28898816,67518.0,67517.0,0.31339926]
[1729561816327,0.28998816,67518.0,67517.0,0.32039926]
[1729561816577,0.1738,67518.0,67517.0,0.32539881]
[1729561818180,0.001,67518.0,67517.0,0.32539881]
[1729561820584,0.174,67528.0,67517.0,0.32539881]
[1729561820585,0.174,67528.0,67522.0,0.00499955]
[1729561820804,0.22312298,67524.0,67523.0,0.14895915]
[1729561821010,0.174,67528.0,67525.0,0.148092]
[1729561821199,0.174,67528.0,67526.0,0.14895915]
[1729561821440,0.2267826,67527.0,67526.0,0.14895915]
[1729561822535,0.0786946,67527.0,67526.0,0.15795915]
[1729561822748,0.2267826,67527.0,67526.0,0.14895915]
[1729561823175,0.2267826,67527.0,67526.0,0.15795915]
[1729561823795,0.148088,67527.0,67526.0,0.15795915]
[1729561824019,0.243288,67527.0,67526.0,0.15795915]
[1729561824666,0.243288,67527.0,67526.0,0.16795915]
[1729561826008,0.0952,67527.0,67526.0,0.16795915]
[1729561826217,0.243288,67527.0,67526.0,0.16795915]
[1729561829530,0.320688,67527.0,67526.0,0.019]
[1729561829750,0.38721682,67527.0,67526.0,0.019]
[1729561829962,0.57294668,67527.0,67526.0,0.019]
[1729561830624,0.57794668,67527.0,67526.0,0.019]
[1729561830846,0.70012295,67527.0,67526.0,0.019]
[1729561831274,0.70012295,67527.0,67519.0,0.22312298]
[1729561831275,0.48571197,67520.0,67519.0,0.22312298]
[1729561831489,0.48571197,67520.0,67519.0,0.37208213]
[1729561831714,0.148108,67518.0,67517.0,0.00165]
[1729561831941,0.320308,67518.0,67517.0,0.00165]
[1729561832595,0.36461586,67518.0,67517.0,0.00165]
[1729561833060,0.36461586,67518.0,67517.0,0.00565]
[1729561833285,0.320308,67518.0,67517.0,0.00165]
[1729561834209,0.320308,67518.0,67517.0,0.00565]
[1729561834624,0.320308,67518.0,67517.0,0.00365]
[1729561834878,0.321308,67518.0,67517.0,0.00365]
[1729561835083,0.321308,67518.0,67517.0,0.00165]
[1729561835303,0.323308,67518.0,67517.0,0.00165]
[1729561836837,0.36761586,67518.0,67517.0,0.00165]
[1729561837075,0.323308,67518.0,67517.0,0.00165]
[1729561837907,0.36761586,67518.0,67517.0,0.00165]
[1729561838027,0.36761302,67518.0,67517.0,0.00165]
[1729561838248,0.48388266,67518.0,67517.0,0.00165]
[1729561839545,0.48851696,67518.0,67517.0,0.00165]
[1729561841303,0.43957764,67518.0,67517.0,0.00165]
[1729561841993,0.43757764,67518.0,67517.0,0.00165]
[1729561842219,0.1732,67518.0,67517.0,0.29971915]
[1729561842442,0.1732,67518.0,67517.0,0.31306946]
[1729561842883,0.1722,67518.0,67517.0,0.31306946]
[1729561843108,0.1722,67518.0,67517.0,0.31406946]
[1729561843337,0.1722,67518.0,67517.0,0.16495946]
[1729561843554,0.1722,67518.0,67517.0,0.16395946]
[1729561844057,0.1732,67518.0,67517.0,0.16995946]
[1729561844753,0.1742,67518.0,67517.0,0.17595946]
[1729561845393,0.1732,67518.0,67517.0,0.16995946]
[1729561845820,0.1742,67518.0,67517.0,0.17595946]
[1729561846046,0.1722,67518.0,67517.0,0.16395946]
[1729561846270,0.1732,67518.0,67517.0,0.16995946]
[1729561846492,0.1742,67518.0,67517.0,0.17595946]
[1729561852350,0.21851879,67518.0,67517.0,0.17595946]
[1729561852755,0.21855234,67518.0,67517.0,0.17595946]
[1729561854388,0.1742,67518.0,67517.0,0.17595946]
[1729561854629,0.24072851,67518.0,67517.0,0.16260915]
[1729561854854,0.1742,67518.0,67517.0,0.17594204]
[1729561855063,0.43857764,67518.0,67517.0,0.17594204]
[1729561855285,0.60703531,67518.0,67517.0,0.16260915]
[1729561855493,0.60703531,67518.0,67517.0,0.17592184]
[1729561856391,0.60703531,67518.0,67517.0,0.16260915]
[1729561856607,0.60703531,67518.0,67517.0,0.17592836]
[1729561857025,0.60703531,67518.0,67517.0,0.16260915]
[1729561857244,0.69573999,67518.0,67517.0,0.17592955]
[1729561857468,0.60703531,67518.0,67517.0,0.17592955]
[1729561857686,0.32694195,67518.0,67517.0,0.17592955]
[1729561859605,0.17883395,67518.0,67517.0,0.17592955]
[1729561860669,0.16960235,67518.0,67517.0,0.32403955]
[1729561860893,0.002,67518.0,67517.0,0.17592955]
[1729561861103,0.002,67518.0,67517.0,0.32403955]
[1729561861306,0.04619903,67518.0,67517.0,0.32403955]
[1729561861708,0.00182176,67518.0,67517.0,0.41387861]
[1729561862579,0.001,67518.0,67517.0,0.40787861]
[1729561863010,0.01,67518.0,67517.0,0.3240391]
[1729561863492,0.009,67518.0,67517.0,0.3180391]
[1729561863935,0.017,67518.0,67517.0,0.3190391]
[1729561864350,0.008,67518.0,67517.0,0.3180391]
[1729561864781,0.012,67518.0,67517.0,0.3190391]
[1729561867367,0.012,67518.0,67517.0,0.60060874]
[1729561867573,0.012,67518.0,67517.0,0.4843391]
[1729561868194,0.012,67518.0,67517.0,0.3190391]
[1729561868353,0.012826,67518.0,67517.0,0.3190391]
[1729561869011,0.012826,67518.0,67517.0,0.43530874]
[1729561869219,0.012826,67518.0,67517.0,0.49749442]
[1729561870232,0.012826,67518.0,67517.0,0.43530874]
[1729561870669,0.012826,67518.0,67517.0,0.44030874]
[1729561870886,0.012826,67518.0,67517.0,0.60580874]
[1729561871367,0.000826,67518.0,67517.0,0.64977727]
[1729561871586,0.012826,67518.0,67517.0,0.60580874]
[1729561871810,0.012826,67518.0,67517.0,0.7012735]
[1729561872062,0.008826,67518.0,67517.0,0.7002735]
[1729561872502,0.008826,67518.0,67517.0,0.7142735]
[1729561872729,0.000826,67518.0,67517.0,0.7132735]
[1729561873166,0.001826,67518.0,67517.0,0.7212735]
[1729561873604,0.001826,67518.0,67517.0,0.62580874]
[1729561874047,0.001826,67518.0,67517.0,0.63580874]
[1729561876747,0.001826,67518.0,67517.0,0.63080874]
[1729561876906,0.001826,67518.0,67517.0,0.63580874]
[1729561877722,0.001826,67518.0,67517.0,0.63780874]
[1729561878111,0.001826,67518.0,67517.0,0.63580874]
[1729561878314,0.001826,67518.0,67517.0,0.70194697]
[1729561879430,0.001826,67518.0,67517.0,0.80194697]
[1729561879883,0.001826,67518.0,67517.0,0.84789376]
[1729561880092,0.001826,67518.0,67517.0,0.80194697]
[1729561880319,0.000826,67518.0,67517.0,0.77994697]
[1729561880670,0.014826,67518.0,67517.0,0.78094697]
[1729561880875,0.014826,67518.0,67517.0,0.66467733]
[1729561881106,0.014826,67518.0,67517.0,0.62790874]
[1729561881261,0.028826,67518.0,67517.0,0.62890874]
[1729561881723,0.028826,67518.0,67517.0,0.55030874]
[1729561884329,0.028826,67518.0,67517.0,0.4240391]
[1729561884551,0.028826,67518.0,67517.0,0.4340391]
[1729561887056,0.028826,67518.0,67517.0,0.3190391]
[1729561887277,0.122026,67518.0,67517.0,0.3190391]
[1729561888554,0.028826,67518.0,67517.0,0.3190391]
[1729561890667,0.014826,67518.0,67517.0,0.3180391]
[1729561891631,0.000826,67518.0,67517.0,0.3170391]
[1729561891847,0.000826,67518.0,67517.0,0.3180391]
[1729561891848,0.014826,67518.0,67517.0,0.3180391]
[1729561892065,0.018826,67518.0,67517.0,0.3180391]
[1729561892645,0.014826,67518.0,67517.0,0.3180391]
[1729561893118,0.028826,67518.0,67517.0,0.3180391]
[1729561894588,0.014826,67518.0,67517.0,0.3170391]
[1729561894793,0.014826,67518.0,67517.0,0.32809651]
[1729561895002,0.025826,67518.0,67517.0,0.32909651]
[1729561895205,0.000826,67518.0,67517.0,0.32809651]
[1729561895432,0.009826,67518.0,67517.0,0.32809651]
[1729561895641,0.010826,67518.0,67517.0,0.34209651]
[1729561895845,0.009826,67518.0,67517.0,0.32809651]
[1729561896022,0.000826,67518.0,67517.0,0.32809651]
[1729561896256,0.001826,67518.0,67517.0,0.34209651]
[1729561896464,0.002826,67518.0,67517.0,0.34309651]
[1729561897527,0.002826,67518.0,67517.0,0.34310031]
[1729561904646,0.002826,67518.0,67517.0,0.34810031]
[1729561905054,0.002826,67518.0,67517.0,0.37110031]
[1729561905306,0.002826,67518.0,67517.0,0.59067449]
[1729561905525,0.002826,67518.0,67517.0,0.65149968]
[1729561905738,0.002826,67518.0,67517.0,0.655722]
[1729561905958,0.000826,67518.0,67517.0,0.62597372]
[1729561906163,0.014826,67518.0,67517.0,0.71287372]
[1729561906364,0.028826,67518.0,67517.0,0.71287372]
[1729561906567,0.028826,67518.0,67517.0,0.71087372]
[1729561906784,0.028826,67518.0,67517.0,0.72087372]
[1729561908664,0.028826,67518.0,67517.0,0.63397372]
[1729561908870,0.028826,67518.0,67517.0,0.55377372]
[1729561910106,0.028826,67518.0,67517.0,0.50544686]
[1729561912327,0.028826,67518.0,67517.0,0.50543912]
[1729561912550,0.028826,67518.0,67517.0,0.50043912]
[1729561913004,0.028826,67518.0,67517.0,0.49543912]
[1729561913437,0.028826,67518.0,67517.0,0.50543912]
[1729561913869,0.028826,67518.0,67517.0,0.38416948]
[1729561914750,0.028826,67518.0,67517.0,0.37916948]
[1729561915446,0.028826,67518.0,67517.0,0.36811601]
[1729561915620,0.028826,67518.0,67517.0,0.37916993]
[1729561915837,0.028826,67518.0,67517.0,0.38416993]
[1729561916577,0.028826,67518.0,67517.0,0.50043957]
[1729561918853,0.028826,67518.0,67517.0,0.49543957]
[1729561919052,0.028826,67518.0,67517.0,0.48438565]
[1729561919260,0.028826,67518.0,67517.0,0.50043799]
[1729561919686,0.028826,67518.0,67517.0,0.50543799]
[1729561922195,0.028826,67518.0,67517.0,0.38916953]
[1729561923548,0.028826,67518.0,67517.0,0.50543917]
[1729561923995,0.028826,67518.0,67517.0,0.52603329]
[1729561924505,0.028826,67518.0,67517.0,0.50543917]
[1729561931191,0.028826,67518.0,67517.0,0.38416953]
[1729561931626,0.127626,67518.0,67517.0,0.37916953]
[1729561932116,0.210526,67518.0,67517.0,0.37416953]
[1729561932351,0.210526,67518.0,67517.0,0.32809262]
[1729561932556,0.210526,67518.0,67517.0,0.3170391]
[1729561932771,0.210526,67518.0,67517.0,0.32809695]
[1729561936534,0.028826,67518.0,67517.0,0.44436659]
[1729561937546,0.028826,67518.0,67517.0,0.47236659]
[1729561937946,0.028826,67518.0,67517.0,0.48236659]
[1729561939023,0.028826,67518.0,67517.0,0.52841336]
[1729561939227,0.028826,67518.0,67517.0,0.55711782]
[1729561939921,0.028826,67518.0,67517.0,0.52841336]
[1729561940131,0.028826,67518.0,67517.0,0.53041336]
[1729561940774,0.028826,67518.0,67517.0,0.52841336]
[1729561941405,0.028826,67518.0,67517.0,0.53041336]
[1729561941824,0.028826,67518.0,67517.0,0.52841336]
[1729561943143,0.028826,67518.0,67517.0,0.65685509]
[1729561943314,0.028826,67518.0,67517.0,0.65684308]
[1729561943773,0.028826,67518.0,67517.0,0.64579724]
[1729561943989,0.028826,67518.0,67517.0,0.65684137]
[1729561944758,0.028826,67518.0,67517.0,0.65884137]
[1729561944966,0.028826,67518.0,67517.0,0.65684137]
[1729561946905,0.028826,67518.0,67517.0,0.52839964]
[1729561949761,0.028826,67518.0,67517.0,0.51735551]
[1729561949996,0.028826,67518.0,67517.0,0.52840119]
[1729561951004,0.194126,67518.0,67517.0,0.41213155]
[1729561952323,0.194126,67518.0,67517.0,0.52840119]
[1729561954356,0.118826,67518.0,67517.0,0.51735551]
[1729561954586,0.118826,67518.0,67517.0,0.52840216]
[1729561954796,0.118826,67518.0,67517.0,0.54607679]
[1729561956349,0.118826,67518.0,67517.0,0.54107679]
[1729561957610,0.118826,67518.0,67517.0,0.54607679]
[1729561957831,0.196326,67518.0,67517.0,0.39180715]
[1729561958257,0.196326,67518.0,67517.0,0.34576038]
[1729561959103,0.196326,67518.0,67517.0,0.35076038]
[1729561961016,0.182326,67518.0,67517.0,0.35076038]
[1729561961454,0.192326,67518.0,67517.0,0.35176038]
[1729561961871,0.182326,67518.0,67517.0,0.34576038]
[1729561962293,0.178326,67518.0,67517.0,0.34676038]
[1729561962507,0.189326,67518.0,67517.0,0.34776038]
[1729561963201,0.200326,67518.0,67517.0,0.34876038]
[1729561973615,0.200326,67518.0,67517.0,0.34877451]
[1729561975193,0.032826,67518.0,67517.0,0.57129497]
[1729561975680,0.032826,67518.0,67517.0,0.46504415]
[1729561977618,0.032826,67518.0,67517.0,0.49304415]
[1729561977836,0.032826,67518.0,67517.0,0.50304415]
[1729561979176,0.032826,67518.0,67517.0,0.54908545]
[1729561979408,0.032826,67518.0,67517.0,0.54408545]
[1729561980059,0.032826,67518.0,67517.0,0.53908545]
[1729561980479,0.032826,67518.0,67517.0,0.56532641]
[1729561980641,0.032826,67518.0,67517.0,0.56832641]
[1729561981077,0.032826,67518.0,67517.0,0.56831578]
[1729561981858,0.032826,67518.0,67517.0,0.54907482]
[1729561982883,0.032826,67518.0,67517.0,0.54407482]
[1729561983092,0.032826,67518.0,67517.0,0.53907482]
[1729561983968,0.032826,67518.0,67517.0,0.51035004]
[1729561984187,0.032826,67518.0,67517.0,0.53908418]
[1729561984644,0.032826,67518.0,67517.0,0.42281454]
[1729561984882,0.123126,67518.0,67517.0,0.34877324]
[1729561985084,0.204226,67518.0,67517.0,0.34877324]
[1729561987762,0.204226,67518.0,67517.0,0.34878628]
[1729561989835,0.123126,67518.0,67517.0,0.56189527]
[1729561990579,0.123126,67518.0,67517.0,0.44562563]
[1729561990784,0.123126,67518.0,67517.0,0.34878628]
[1729561993883,0.032826,67518.0,67517.0,0.46505592]
[1729561994303,0.032826,67518.0,67517.0,0.51112419]
[1729561995185,0.032826,67518.0,67517.0,0.54912224]
[1729561995610,0.032826,67518.0,67517.0,0.84319188]
[1729561995821,0.000826,67526.0,67525.0,0.29109255]
[1729561996035,0.000826,67534.0,67533.0,0.15307455]
[1729561996251,0.000826,67534.0,67533.0,0.44704857]
[1729561996456,0.000826,67534.0,67533.0,0.58210223]
[1729561996676,0.000826,67534.0,67533.0,0.59385808]
[1729561998633,0.005826,67534.0,67533.0,0.59585808]
[1729561999080,0.005826,67534.0,67533.0,0.5957852]
[1729561999304,0.005826,67534.0,67533.0,0.60614068]
[1729561999528,0.005826,67534.0,67533.0,0.72441032]
[1729561999741,0.005826,67534.0,67533.0,0.74205484]
[1729562000381,0.0821,67547.0,67542.0,0.00499955]
[1729562000591,0.0821,67547.0,67546.0,0.148047]
[1729562000808,0.0766,67554.0,67552.0,0.148034]
[1729562001054,0.0766,67554.0,67552.0,0.27593139]
[1729562001718,0.0766,67554.0,67552.0,0.42489054]
[1729562001928,0.0766,67554.0,67552.0,0.41420155]
[1729562002349,0.0766,67554.0,67552.0,0.42420155]
[1729562002572,0.0766,67554.0,67552.0,0.43520155]
[1729562002801,0.0766,67554.0,67552.0,0.3296209]
[1729562003242,0.093439,67553.0,67552.0,0.3296209]
[1729562014257,0.000839,67553.0,67552.0,0.3296209]
[1729562016843,0.000839,67553.0,67552.0,0.33462045]
[1729562020282,0.000839,67553.0,67552.0,0.32362045]
[1729562020705,0.000839,67553.0,67552.0,0.33762045]
[1729562020920,0.000839,67553.0,67552.0,0.32762045]
[1729562021249,0.000839,67553.0,67552.0,0.33762045]
[1729562021472,0.000839,67553.0,67552.0,0.44562224]
[1729562021919,0.000839,67553.0,67552.0,0.43562224]
[1729562022133,0.000839,67553.0,67552.0,0.34162045]
[1729562024536,0.000839,67553.0,67552.0,0.36462045]
[1729562025626,0.000839,67553.0,67552.0,0.35062045]
[1729562025840,0.000839,67553.0,67552.0,0.33762045]
[1729562026262,0.000839,67553.0,67552.0,0.33862045]
[1729562028897,0.000839,67553.0,67552.0,0.36596893]
[1729562029763,0.000839,67553.0,67552.0,0.33862045]
[1729562033969,0.000839,67553.0,67552.0,0.31562045]
[1729562043986,0.000839,67553.0,67552.0,0.33862045]
[1729562046731,0.000839,67553.0,67552.0,0.34062045]
[1729562046952,0.000839,67553.0,67552.0,0.33862045]
[1729562047163,0.000839,67553.0,67552.0,0.46253566]
[1729562047392,0.000839,67553.0,67552.0,0.46753566]
[1729562047612,0.000839,67553.0,67552.0,0.52345664]
[1729562047839,0.000839,67553.0,67552.0,0.53005547]
[1729562048239,0.000839,67553.0,67552.0,0.63205547]
[1729562048450,0.0805,67568.0,67567.0,0.15300055]
[1729562048668,0.04517915,67571.0,67570.0,0.147994]
[1729562048886,0.000839,67571.0,67570.0,0.29695315]
[1729562049313,0.000839,67571.0,67570.0,0.30835525]
[1729562049956,0.000839,67571.0,67570.0,0.31835525]
[1729562050391,0.000839,67571.0,67570.0,0.32835525]
[1729562050603,0.000839,67571.0,67570.0,0.37570111]
[1729562051497,0.000839,67571.0,67570.0,0.32835525]
[1729562056706,0.178339,67571.0,67570.0,0.32835525]
[1729562059384,0.22268733,67571.0,67570.0,0.32835525]
[1729562060931,0.178339,67571.0,67570.0,0.32835525]
[1729562062494,0.2448615,67571.0,67570.0,0.32835525]
[1729562064761,0.36113114,67571.0,67570.0,0.32835525]
[1729562064987,0.29460864,67571.0,67570.0,0.32835525]
[1729562065459,0.36113114,67571.0,67570.0,0.32835525]
[1729562065671,0.29460864,67571.0,67570.0,0.32835525]
[1729562066343,0.36113114,67571.0,67570.0,0.32835525]
[1729562066843,0.29460864,67571.0,67570.0,0.32835525]
[1729562068187,0.36113114,67571.0,67570.0,0.32835525]
[1729562070177,0.29460864,67571.0,67570.0,0.18036125]
[1729562070388,0.71734687,67571.0,67570.0,0.18036125]
[1729562070817,0.60640388,67571.0,67570.0,0.16895915]
[1729562071074,0.60640388,67571.0,67570.0,0.02]
[1729562072031,0.60640388,67571.0,67570.0,0.01]
[1729562072251,0.60640388,67571.0,67561.0,0.22812253]
[1729562072252,0.148004,67566.0,67561.0,0.37113698]
[1729562072462,0.23396516,67563.0,67562.0,0.14895915]
[1729562072669,0.3502348,67563.0,67562.0,0.16036981]
[1729562072979,0.28366964,67563.0,67562.0,0.16036981]
[1729562073191,0.28366964,67563.0,67562.0,0.01141066]
[1729562073192,0.59549289,67563.0,67562.0,0.01141066]
[1729562073422,0.70642932,67563.0,67562.0,0.01141066]
[1729562073626,0.148025,67556.0,67551.0,0.22312298]
[1729562073833,0.148027,67555.0,67554.0,0.14895915]
[1729562074055,0.21458946,67555.0,67554.0,0.01094925]
[1729562074301,0.40059683,67555.0,67554.0,0.01094925]
[1729562074509,0.148029,67554.0,67544.0,0.00499955]
[1729562074728,0.31184888,67554.0,67544.0,0.00499955]
[1729562074939,0.42811852,67554.0,67544.0,0.00499955]
[1729562075157,0.42806638,67554.0,67544.0,0.00499955]
[1729562075362,0.42806638,67554.0,67545.0,0.148049]
[1729562075605,0.51675941,67554.0,67545.0,0.148049]
[1729562075850,0.51675941,67554.0,67553.0,0.002652]
[1729562076036,0.68281351,67554.0,67553.0,0.001652]
[1729562076265,0.68281351,67554.0,67553.0,0.002652]
[1729562076706,0.85691351,67554.0,67553.0,0.002652]
[1729562076918,0.85691351,67554.0,67544.0,0.22312298]
[1729562076919,0.163051,67544.0,67543.0,0.001652]
[1729562077135,0.61175594,67544.0,67543.0,0.001652]
[1729562077555,0.50091874,67544.0,67543.0,0.001652]
[1729562078010,0.61718838,67544.0,67543.0,0.001652]
[1729562078255,0.50091874,67544.0,67543.0,0.001652]
[1729562078465,0.61718838,67544.0,67543.0,0.001652]
[1729562078671,0.75590672,67544.0,67543.0,0.001652]
[1729562079290,0.71718838,67544.0,67543.0,0.001652]
[1729562079522,0.61979335,67544.0,67543.0,0.001652]
[1729562080191,0.55342064,67544.0,67543.0,0.001652]
[1729562081699,0.59964277,67544.0,67543.0,0.001652]
[1729562081909,0.59964277,67544.0,67526.0,0.149742]
[1729562081910,0.005,67535.0,67526.0,0.149742]
[1729562082212,0.38062728,67527.0,67526.0,0.001652]
[1729562082453,0.26435764,67527.0,67526.0,0.001652]
[1729562082648,0.38062728,67527.0,67526.0,0.001652]
[1729562082862,0.55132728,67527.0,67526.0,0.001652]
[1729562083305,0.55632728,67527.0,67526.0,0.001652]
[1729562083746,0.44005764,67527.0,67526.0,0.001652]
[1729562084175,0.55632728,67527.0,67526.0,0.001652]
[1729562084618,0.55632728,67527.0,67526.0,0.009652]
[1729562084829,0.44005764,67527.0,67526.0,0.009652]
[1729562085054,0.28696964,67527.0,67526.0,0.001652]
[1729562085276,0.19896964,67527.0,67526.0,0.149743]
[1729562085909,0.19696964,67527.0,67526.0,0.149743]
[1729562086760,0.19896964,67527.0,67526.0,0.149743]
[1729562087647,0.19896964,67527.0,67526.0,0.158743]
[1729562087866,0.19696964,67527.0,67526.0,0.158743]
[1729562088308,0.19696964,67527.0,67526.0,0.167743]
[1729562088529,0.0807,67527.0,67526.0,0.019652]
[1729562088741,0.0807,67527.0,67526.0,0.167743]
[1729562088951,0.24846989,67531.0,67529.0,0.148083]
[1729562089167,0.24846989,67531.0,67527.0,0.148087]
[1729562089384,0.24846989,67531.0,67526.0,0.315834]
[1729562089599,0.24846989,67531.0,67530.0,0.148082]
[1729562089600,0.0798,67531.0,67530.0,0.148082]
[1729562089877,0.0788,67535.0,67527.0,0.296177]
[1729562090086,0.0788,67535.0,67534.0,0.148073]
[1729562090311,0.1,67540.0,67536.0,0.296138]
[1729562090312,0.0795,67540.0,67536.0,0.296138]
[1729562090524,0.16866989,67538.0,67535.0,0.14807]
[1729562091150,0.16866989,67538.0,67536.0,0.01130661]
[1729562091616,0.22756,67540.0,67536.0,0.01630661]
[1729562091828,0.22756,67540.0,67537.0,0.14895915]
[1729562092226,0.31673389,67538.0,67537.0,0.14895915]
[1729562092439,0.16866989,67538.0,67537.0,0.14895915]
[1729562092660,0.31673389,67538.0,67537.0,0.14895915]
[1729562093510,0.31673389,67538.0,67537.0,0.15595915]
[1729562093733,0.31673389,67538.0,67537.0,0.16295915]
[1729562095220,0.16866989,67538.0,67537.0,0.16295915]
[1729562095631,0.31673389,67538.0,67537.0,0.16295915]
[1729562096919,0.16866989,67538.0,67537.0,0.16295915]
[1729562097126,0.31673389,67538.0,67537.0,0.16295915]
[1729562097611,0.16866989,67538.0,67537.0,0.16295915]
[1729562097831,0.31673389,67538.0,67537.0,0.16295915]
[1729562099352,0.41616268,67538.0,67537.0,0.16295915]
[1729562099567,0.31673389,67538.0,67537.0,0.16295915]
[1729562100443,0.16866989,67538.0,67537.0,0.31102515]
[1729562100655,0.000826,67543.0,67542.0,0.148056]
[1729562100884,0.16949589,67543.0,67542.0,0.14895915]
[1729562101108,0.31754889,67543.0,67542.0,0.14895915]
[1729562101800,0.41678238,67543.0,67542.0,0.16022027]
[1729562102014,0.50948238,67543.0,67542.0,0.16022027]
[1729562102231,0.50948238,67543.0,67542.0,0.14895915]
[1729562102694,0.50948238,67543.0,67542.0,0.16022027]
[1729562102907,0.41024889,67543.0,67542.0,0.16222027]
[1729562103152,0.41024889,67543.0,67542.0,0.16922027]
[1729562103372,0.41024889,67543.0,67542.0,0.16722027]
[1729562103623,0.41024889,67543.0,67542.0,0.02226112]
[1729562103624,0.58391878,67543.0,67542.0,0.02226112]
[1729562103853,0.0831,67531.0,67527.0,0.148087]
[1729562104084,0.0831,67531.0,67518.0,0.32182298]
[1729562104085,0.16866989,67537.0,67533.0,0.22312298]
[1729562104316,0.16866989,67537.0,67532.0,0.296155]
[1729562104530,0.16866989,67537.0,67535.0,0.148071]
[1729562105038,0.16866989,67537.0,67536.0,0.01013501]
[1729562105259,0.16866989,67537.0,67536.0,0.15909416]
[1729562106592,0.16866989,67537.0,67536.0,0.16309416]
[1729562107900,0.16866989,67537.0,67536.0,0.16609416]
[1729562108773,0.16866989,67537.0,67536.0,0.31416316]
[1729562108986,0.16866989,67537.0,67536.0,0.16609416]
[1729562110310,0.31673589,67537.0,67536.0,0.16609416]
[1729562110743,0.31673589,67537.0,67536.0,0.15595915]
[1729562111188,0.16866989,67537.0,67536.0,0.16609416]
[1729562111622,0.49174708,67537.0,67536.0,0.01713501]
[1729562112049,0.49174708,67537.0,67536.0,0.007]
[1729562113369,0.40773589,67537.0,67536.0,0.007]
[1729562113995,0.40773589,67537.0,67536.0,0.01714147]
[1729562114366,0.40773589,67537.0,67536.0,0.007]
[1729562115578,0.48683589,67537.0,67536.0,0.007]
[1729562115791,0.55804632,67537.0,67536.0,0.007]
[1729562116026,0.76519455,67537.0,67536.0,0.007]
[1729562116241,0.77183448,67537.0,67536.0,0.007]
[1729562116384,0.90425534,67537.0,67536.0,0.007]
[1729562116602,0.1791,67528.0,67527.0,0.22312298]
[1729562116840,0.58441948,67528.0,67527.0,0.22312298]
[1729562117043,0.58441948,67528.0,67526.0,0.001652]
[1729562117044,0.148088,67527.0,67526.0,0.001652]
[1729562117235,0.21451198,67527.0,67526.0,0.001652]
[1729562117456,0.40017485,67527.0,67526.0,0.001652]
[1729562118272,0.54527337,67527.0,67526.0,0.001652]
[1729562118506,0.56741427,67527.0,67526.0,0.004652]
[1729562118713,0.42731575,67527.0,67526.0,0.004652]
[1729562118917,0.50761575,67527.0,67526.0,0.004652]
[1729562119128,0.50761575,67527.0,67526.0,0.002652]
[1729562119608,0.70288331,67527.0,67526.0,0.002652]
[1729562119842,0.32177789,67518.0,67517.0,0.00165]
[1729562120076,0.56560115,67518.0,67517.0,0.00165]
[1729562121326,0.56760115,67518.0,67517.0,0.00165]
[1729562121535,0.70249482,67518.0,67517.0,0.00165]
[1729562121748,0.70049482,67518.0,67517.0,0.00165]
[1729562121978,0.93371282,67518.0,67517.0,0.00165]
[1729562122198,0.95166829,67518.0,67517.0,0.00165]
[1729562122420,0.80169482,67518.0,67517.0,0.00165]
[1729562123314,0.79969482,67518.0,67517.0,0.00165]
[1729562123567,0.60513126,67518.0,67517.0,0.00165]
[1729562123789,0.61113126,67518.0,67517.0,0.00265]
[1729562124843,0.61513126,67518.0,67517.0,0.00365]
[1729562128916,0.61494997,67518.0,67517.0,0.00365]
[1729562129390,0.7255589,67518.0,67517.0,0.00365]
[1729562129836,0.61694997,67518.0,67517.0,0.00365]
[1729562130051,0.72555363,67518.0,67517.0,0.00365]
[1729562131351,0.61494997,67518.0,67517.0,0.00365]
[1729562132021,0.61494997,67518.0,67484.0,0.01]
[1729562132022,0.015,67492.0,67485.0,0.001676]
[1729562132255,0.43183489,67492.0,67491.0,0.20385198]
[1729562132484,0.43183489,67492.0,67485.0,0.001676]